lending/lending_fUSD_20240723
["ID","MTS","AMOUNT","RATE_DAILY","PERIOD"]
[332961558,1721705462519,-365.0,0.00010958,2]
[332961559,1721705462586,-2299.92733262,0.00010958,2]
[332961560,1721705462595,-537.04,0.00010958,2]
[332961561,1721705462605,-923.19,0.00010958,2]
[332961562,1721705462615,-1224.92,0.00010958,2]
[332961563,1721705462625,-539.52,0.00010958,2]
[332961564,1721705462636,-500.0,0.00010958,2]
[332961565,1721705462648,-923.19,0.00010958,2]
[332961566,1721705462657,-2688.59521163,0.00010958,2]
[332961567,1721705462668,-104.12309717,0.00010958,2]
[332961568,1721705462687,-432.91690283,0.00010958,2]
[332961569,1721705462696,-172.13851454,0.00010958,2]
[332961570,1721705462710,-327.86148546,0.00010958,2]
[332961571,1721705462721,-1224.92,0.00010958,2]
[332961572,1721705462731,-539.52,0.00010958,2]
[332961573,1721705462741,-500.0,0.00010958,2]
[332961574,1721705462752,-537.04,0.00010958,2]
[332961575,1721705462761,-500.0,0.00010958,2]
[332961576,1721705462770,-1224.92,0.00010958,2]
[332961577,1721705462783,-539.52,0.00010958,2]
[332961578,1721705462793,-500.0,0.00010958,2]
[332961579,1721705462804,-537.04,0.00010958,2]
[332961580,1721705462814,-500.0,0.00010958,2]
[332961581,1721705462823,-923.19,0.00010958,2]
[332961582,1721705462833,-1224.92,0.00010958,2]
[332961583,1721705462843,-539.52,0.00010958,2]
[332961584,1721705462852,-500.0,0.00010958,2]
[332961585,1721705462862,-537.04,0.00010958,2]
[332961586,1721705462872,-923.19,0.00010958,2]
[332961587,1721705462882,-532.21137608,0.00010958,2]
[332961588,1721705462891,-1224.92,0.00010958,2]
[332961589,1721705462901,-539.52,0.00010958,2]
[332961590,1721705462911,-500.0,0.00010958,2]
[332961591,1721705462921,-537.04,0.00010958,2]
[332961592,1721705462931,-923.19,0.00010958,2]
[332961593,1721705462941,-1224.92,0.00010958,2]
[332961594,1721705462951,-539.52,0.00010958,2]
[332961595,1721705462962,-500.0,0.00010958,2]
[332961596,1721705462972,-500.0,0.00010958,2]
[332961597,1721705462982,-537.04,0.00010958,2]
[332961598,1721705462991,-148.70884813,0.00010958,2]
[332961599,1721705463033,-1076.21115187,0.00010958,2]
[332961600,1721705463043,-124.04536307,0.00010958,2]
[332961601,1721705463541,-355.81,0.00010137,2]
[332961602,1721705463551,-415.47463693,0.00010958,2]
[332961603,1721705463562,-500.0,0.00010958,2]
[332961604,1721705463572,-500.0,0.00010958,2]
[332961605,1721705463583,-923.19,0.00010958,2]
[332961606,1721705463594,-537.04,0.00010958,2]
[332961607,1721705463604,-500.0,0.00010958,2]
[332961608,1721705463614,-923.19,0.00010958,2]
[332961609,1721705463625,-539.52,0.00010958,2]
[332961610,1721705463636,-1224.92,0.00010958,2]
[332961611,1721705463651,-537.04,0.00010958,2]
[332961612,1721705463660,-500.0,0.00010958,2]
[332961613,1721705463670,-500.0,0.00010958,2]
[332961614,1721705463681,-923.19,0.00010958,2]
[332961615,1721705463690,-539.52,0.00010958,2]
[332961616,1721705463700,-645.51,0.00010958,2]
[332961617,1721705463710,-1224.92,0.00010958,2]
[332961618,1721705463720,-537.04,0.00010958,2]
[332961619,1721705463729,-500.0,0.00010958,2]
[332961620,1721705463739,-500.0,0.00010958,2]
[332961621,1721705463749,-923.19,0.00010958,2]
[332961622,1721705463759,-539.75819259,0.00010958,2]
[332961623,1721705463768,-645.51,0.00010958,2]
[332961624,1721705463778,-537.04,0.00010958,2]
[332961625,1721705463788,-500.0,0.00010958,2]
[332961626,1721705463797,-923.19,0.00010958,2]
[332961627,1721705463807,-645.51,0.00010958,2]
[332961628,1721705463817,-1224.92,0.00010958,2]
[332961629,1721705463827,-537.04,0.00010958,2]
[332961630,1721705463837,-500.0,0.00010958,2]
[332961631,1721705463847,-500.0,0.00010958,2]
[332961632,1721705463857,-645.51,0.00010958,2]
[332961633,1721705463867,-203.65018287,0.00010958,2]
[332961634,1721705463877,-923.19,0.00010958,2]
[332961635,1721705463887,-537.04,0.00010958,2]
[332961636,1721705463896,-1224.92759183,0.00010958,2]
[332961637,1721705463906,-500.0,0.00010958,2]
[332961638,1721705463916,-500.0,0.00010958,2]
[332961639,1721705463926,-645.51,0.00010958,2]
[332961640,1721705463935,-537.04,0.00010958,2]
[332961641,1721705463944,-923.19,0.00010958,2]
[332961642,1721705463954,-500.0,0.00010958,2]
[332961643,1721705463964,-522.9801884,0.00010958,2]
[332961644,1721705463975,-645.51,0.00010958,2]
[332961645,1721705463985,-500.0,0.00010958,2]
[332961646,1721705463995,-537.12600139,0.00010958,2]
[332961647,1721705464008,-923.19,0.00010958,2]
[332961648,1721705464018,-500.0,0.00010958,2]
[332961649,1721705464028,-645.51,0.00010958,2]
[332961650,1721705464039,-500.0,0.00010958,2]
[332961651,1721705464048,-923.19,0.00010958,2]
[332961652,1721705464059,-500.0,0.00010958,2]
[332961653,1721705464069,-645.51,0.00010958,2]
[332961654,1721705464080,-500.0,0.00010958,2]
[332961655,1721705464089,-923.19,0.00010958,2]
[332961656,1721705464099,-526.44811323,0.00010958,2]
[332961657,1721705464110,-645.51,0.00010958,2]
[332961658,1721705464120,-923.29833917,0.00010958,2]
[332961659,1721705464130,-103.8044743,0.00010958,2]
[332961660,1721705464189,-396.1955257,0.00010958,2]
[332961661,1721705464199,-645.51,0.00010958,2]
[332961662,1721705464210,-500.0,0.00010958,2]
[332961663,1721705464221,-500.0,0.00010958,2]
[332961664,1721705464231,-85.86444574,0.00010958,2]
[332961665,1721705464246,-559.64555426,0.00010958,2]
[332961666,1721705464257,-182.94004065,0.00010958,2]
[332961667,1721705464267,-645.51,0.00010958,2]
[332961668,1721705464277,-500.0,0.00010958,2]
[332961669,1721705464287,-645.51,0.00010958,2]
[332961670,1721705464297,-645.51,0.00010958,2]
[332961671,1721705464307,-500.0,0.00010958,2]
[332961672,1721705464317,-645.51,0.00010958,2]
[332961673,1721705464327,-500.0,0.00010958,2]
[332961674,1721705464338,-645.51,0.00010958,2]
[332961675,1721705464349,-146.84010418,0.00010958,2]
[332961676,1721705464367,-353.15989582,0.00010958,2]
[332961677,1721705464378,-961.02,0.00010958,2]
[332961678,1721705464390,-353.57887911,0.00010958,2]
[332961679,1721705464560,-291.93112089,0.00010958,2]
[332961680,1721705464570,-500.0,0.00010958,2]
[332961681,1721705464580,-500.0,0.00010958,2]
[332961682,1721705464591,-645.51,0.00010958,2]
[332961683,1721705464601,-933.59297001,0.00010958,2]
[332961684,1721705464677,-27.42702999,0.00010958,2]
[332961685,1721705464689,-500.0,0.00010958,2]
[332961686,1721705464699,-2421.7,0.00010958,2]
[332961687,1721705464709,-500.0,0.00010958,2]
[332961688,1721705464719,-961.02,0.00010958,2]
[332961689,1721705464729,-500.0,0.00010958,2]
[332961690,1721705464738,-2421.7,0.00010958,2]
[332961691,1721705464748,-645.51,0.00010958,2]
[332961692,1721705464759,-696.71,0.00010958,2]
[332961693,1721705464769,-961.02,0.00010958,2]
[332961694,1721705464779,-500.0,0.00010958,2]
[332961695,1721705464788,-500.0,0.00010958,2]
[332961696,1721705464798,-645.51,0.00010958,2]
[332961697,1721705464808,-696.71,0.00010958,2]
[332961698,1721705464817,-500.0,0.00010958,2]
[332961699,1721705464827,-961.02,0.00010958,2]
[332961700,1721705464837,-2421.7,0.00010958,2]
[332961701,1721705464847,-251.94427261,0.00010958,2]
[332961702,1721705464858,-645.51,0.00010958,2]
[332961703,1721705464868,-696.71,0.00010958,2]
[332961704,1721705464878,-571.91338852,0.00010958,2]
[332961705,1721705464889,-961.02,0.00010958,2]
[332961706,1721705464899,-645.51,0.00010958,2]
[332961707,1721705464909,-696.71,0.00010958,2]
[332961708,1721705464919,-961.02,0.00010958,2]
[332961709,1721705464929,-645.51,0.00010958,2]
[332961710,1721705464939,-2421.7,0.00010958,2]
[332961711,1721705464949,-696.71,0.00010958,2]
[332961712,1721705464959,-961.02,0.00010958,2]
[332961713,1721705464969,-645.56197666,0.00010958,2]
[332961714,1721705464979,-2421.7,0.00010958,2]
[332961715,1721705464990,-696.71,0.00010958,2]
[332961716,1721705464999,-961.02,0.00010958,2]
[332961717,1721705465010,-2421.7,0.00010958,2]
[332961718,1721705465020,-961.02,0.00010958,2]
[332961719,1721705465030,-696.71,0.00010958,2]
[332961720,1721705465040,-2421.7,0.00010958,2]
[332961721,1721705465050,-961.02,0.00010958,2]
[332961722,1721705465060,-2421.7,0.00010958,2]
[332961723,1721705465069,-961.02,0.00010958,2]
[332961724,1721705465079,-696.71,0.00010958,2]
[332961725,1721705465089,-2421.7,0.00010958,2]
[332961726,1721705465099,-961.02,0.00010958,2]
[332961727,1721705465110,-2421.7,0.00010958,2]
[332961728,1721705465121,-500.0,0.00010958,2]
[332961729,1721705465132,-961.02,0.00010958,2]
[332961730,1721705465142,-696.71,0.00010958,2]
[332961731,1721705465152,-1616.17885934,0.00010958,2]
[332961732,1721705465203,-291.09122005,0.00010958,2]
[332961733,1721705465215,-514.42992061,0.00010958,2]
[332961734,1721705465224,-500.0,0.00010958,2]
[332961735,1721705465234,-696.71,0.00010958,2]
[332961736,1721705465244,-961.02,0.00010958,2]
[332961737,1721705465254,-2421.7,0.00010958,2]
[332961738,1721705465264,-500.0,0.00010958,2]
[332961739,1721705465274,-354.85116801,0.00010958,2]
[332961740,1721705465292,-606.16883199,0.00010958,2]
[332961741,1721705465302,-696.71,0.00010958,2]
[332961742,1721705465312,-500.0,0.00010958,2]
[332961743,1721705465322,-2421.7,0.00010958,2]
[332961744,1721705465333,-500.0,0.00010958,2]
[332961745,1721705465343,-500.0,0.00010958,2]
[332961746,1721705465354,-961.02,0.00010958,2]
[332961747,1721705465363,-144.40116801,0.00010958,2]
[332961748,1721705465382,-355.59883199,0.00010958,2]
[332961749,1721705465392,-2421.7,0.00010958,2]
[332961750,1721705465403,-696.71,0.00010958,2]
[332961751,1721705465412,-961.02,0.00010958,2]
[332961752,1721705465423,-490.20984704,0.00010958,2]
[332961753,1721705465438,-1931.49015296,0.00010958,2]
[332961754,1721705465448,-500.0,0.00010958,2]
[332961755,1721705465458,-696.71,0.00010958,2]
[332961756,1721705465468,-500.0,0.00010958,2]
[332961757,1721705465479,-500.0,0.00010958,2]
[332961758,1721705465489,-500.0,0.00010958,2]
[332961759,1721705465500,-2421.7,0.00010958,2]
[332961760,1721705465511,-388.02,0.00010958,2]
[332961761,1721705465521,-961.02,0.00010958,2]
[332961762,1721705465530,-696.71,0.00010958,2]
[332961763,1721705465540,-500.0,0.00010958,2]
[332961764,1721705465550,-961.02,0.00010958,2]
[332961765,1721705465560,-500.0,0.00010958,2]
[332961766,1721705465570,-2421.7,0.00010958,2]
[332961767,1721705465580,-500.0,0.00010958,2]
[332961768,1721705465590,-696.71,0.00010958,2]
[332961769,1721705465600,-500.0,0.00010958,2]
[332961770,1721705465610,-961.02,0.00010958,2]
[332961771,1721705465619,-2421.7,0.00010958,2]
[332961772,1721705465629,-500.0,0.00010958,2]
[332961773,1721705465643,-500.0,0.00010958,2]
[332961774,1721705465652,-500.0,0.00010958,2]
[332961775,1721705465663,-961.02,0.00010958,2]
[332961776,1721705465672,-2421.7,0.00010958,2]
[332961777,1721705465682,-500.0,0.00010958,2]
[332961778,1721705465692,-696.71,0.00010958,2]
[332961779,1721705465702,-500.0,0.00010958,2]
[332961780,1721705465712,-500.0,0.00010958,2]
[332961781,1721705465723,-2421.7,0.00010958,2]
[332961782,1721705465733,-500.0,0.00010958,2]
[332961783,1721705465743,-961.02,0.00010958,2]
[332961784,1721705465753,-696.71,0.00010958,2]
[332961785,1721705465764,-500.0,0.00010958,2]
[332961786,1721705465775,-500.0,0.00010958,2]
[332961787,1721705465785,-2421.7,0.00010958,2]
[332961788,1721705465799,-961.14853692,0.00010958,2]
[332961789,1721705465809,-696.71,0.00010958,2]
[332961790,1721705465819,-500.0,0.00010958,2]
[332961791,1721705465829,-500.0,0.00010958,2]
[332961792,1721705465839,-2421.7,0.00010958,2]
[332961793,1721705465849,-500.0,0.00010958,2]
[332961794,1721705465859,-500.0,0.00010958,2]
[332961795,1721705465870,-696.71,0.00010958,2]
[332961796,1721705465881,-526.1827268,0.00010958,2]
[332961797,1721705465891,-2421.7,0.00010958,2]
[332961798,1721705465902,-635.55402334,0.00010958,2]
[332961799,1721705465913,-500.0,0.00010958,2]
[332961800,1721705465923,-696.71,0.00010958,2]
[332961801,1721705465934,-2421.87455391,0.00010958,2]
[332961802,1721705465944,-748.75,0.00010958,2]
[332961803,1721705465954,-500.0,0.00010958,2]
[332961804,1721705465964,-696.71,0.00010958,2]
[332961805,1721705465975,-748.75,0.00010958,2]
[332961806,1721705465986,-500.0,0.00010958,2]
[332961807,1721705465996,-748.75,0.00010958,2]
[332961808,1721705466008,-500.0,0.00010958,2]
[332961809,1721705466019,-696.71,0.00010958,2]
[332961810,1721705466029,-748.75,0.00010958,2]
[332961811,1721705466039,-500.0,0.00010958,2]
[332961812,1721705466049,-500.0,0.00010958,2]
[332961813,1721705466059,-696.71,0.00010958,2]
[332961814,1721705466069,-748.75,0.00010958,2]
[332961815,1721705466079,-500.0,0.00010958,2]
[332961816,1721705466088,-500.0,0.00010958,2]
[332961817,1721705466098,-696.80604572,0.00010958,2]
[332961818,1721705466108,-907.14,0.00010958,2]
[332961819,1721705466117,-500.0,0.00010958,2]
[332961820,1721705466127,-23.12308552,0.00010958,2]
[332961821,1721705466218,-210.31799005,0.00010957,2]
[332961822,1721705466228,-221.73467277,0.00010958,2]
[332961823,1721705466240,-503.89224171,0.00010958,2]
[332961824,1721705466250,-445.75775829,0.00010958,2]
[332961825,1721705466265,-54.24224171,0.00010958,2]
[332961826,1721705466275,-907.14,0.00010958,2]
[332961827,1721705466285,-500.0,0.00010958,2]
[332961828,1721705466295,-748.75,0.00010958,2]
[332961829,1721705466305,-500.0,0.00010958,2]
[332961830,1721705466316,-907.14,0.00010958,2]
[332961831,1721705466326,-520.18211418,0.00010958,2]
[332961832,1721705466335,-748.75,0.00010958,2]
[332961833,1721705466347,-500.0,0.00010958,2]
[332961834,1721705466357,-907.14,0.00010958,2]
[332961835,1721705466367,-748.75,0.00010958,2]
[332961836,1721705466377,-507.90165325,0.00010958,2]
[332961837,1721705466387,-709.64905088,0.00010958,2]
[332961838,1721705466409,-1296.07094912,0.00010958,2]
[332961839,1721705466419,-907.14,0.00010958,2]
[332961840,1721705466429,-2005.72,0.00010958,2]
[332961841,1721705466439,-907.14,0.00010958,2]
[332961842,1721705466449,-748.75,0.00010958,2]
[332961843,1721705466459,-2005.72,0.00010958,2]
[332961844,1721705466469,-907.14,0.00010958,2]
[332961845,1721705466479,-748.75,0.00010958,2]
[332961846,1721705466489,-2005.72,0.00010958,2]
[332961847,1721705466499,-748.75,0.00010958,2]
[332961848,1721705466511,-907.14,0.00010958,2]
[332961849,1721705466522,-515.98795069,0.00010958,2]
[332961850,1721705466532,-500.0,0.00010958,2]
[332961851,1721705466542,-748.75,0.00010958,2]
[332961852,1721705466551,-907.14,0.00010958,2]
[332961853,1721705466563,-227.30954728,0.00010958,2]
[332961854,1721705466586,-264.208,0.00010958,2]
[332961855,1721705466598,-583.77683479,0.00010958,2]
[332961856,1721705466609,-930.42561793,0.00010958,2]
[332961857,1721705466619,-500.0,0.00010958,2]
[332961858,1721705466629,-636.07791408,0.00010958,2]
[332961859,1721705466646,-112.67208592,0.00010958,2]
[332961860,1721705466656,-452.46281608,0.00010958,2]
[332961862,1721705510209,247.92,8.219e-05,2]
[332961868,1721706013547,250.0,8.949e-05,2]
[332961869,1721706035302,23890.0,8.908e-05,2]
[332961870,1721706041730,235.52,8.219e-05,2]
[332961871,1721706152650,250.0,8.902e-05,2]
[332961873,1721706280221,26597.12,8.975e-05,2]
[332961877,1721706344214,958.76,8.918e-05,2]
[332961878,1721706425255,1852.42,8.957e-05,2]
[332961885,1721706476744,960.9,8.973e-05,2]
[332961886,1721706508752,578.25,8.947e-05,2]
[332961887,1721706547820,765.27,8.964e-05,2]
[332961891,1721706551701,223.74,8.219e-05,2]
[332961895,1721706632277,-207.0,9.241e-05,2]
[332961896,1721706632286,-999.35571216,9.242e-05,2]
[332961897,1721706632296,-263.09,9.342e-05,2]
[332961898,1721706632305,-150.0,9.562e-05,2]
[332961899,1721706632315,-297.52,9.572e-05,2]
[332961900,1721706632325,-297.52,9.575e-05,2]
[332961901,1721706632334,-222.66341783,9.577e-05,2]
[332961902,1721706632345,-74.85658217,9.577e-05,2]
[332961903,1721706632355,-297.52,9.58e-05,2]
[332961904,1721706632364,-297.52,9.582e-05,2]
[332961905,1721706632373,-297.52,9.585e-05,2]
[332961906,1721706632383,-297.52,9.588e-05,2]
[332961907,1721706632392,-297.52,9.59e-05,2]
[332961908,1721706632402,-297.52,9.593e-05,2]
[332961909,1721706632411,-297.52,9.595e-05,2]
[332961910,1721706632420,-297.52,9.598e-05,2]
[332961911,1721706632429,-297.52,9.6e-05,2]
[332961912,1721706632439,-297.52,9.603e-05,2]
[332961913,1721706632449,-297.52,9.605e-05,2]
[332961914,1721706632458,-297.52,9.608e-05,2]
[332961915,1721706632467,-297.52,9.61e-05,2]
[332961916,1721706632477,-297.52,9.613e-05,2]
[332961917,1721706632486,-297.52,9.615e-05,2]
[332961918,1721706632495,-297.52,9.618e-05,2]
[332961919,1721706632504,-297.52,9.62e-05,2]
[332961920,1721706632513,-150.0,9.669e-05,2]
[332961921,1721706632522,-387.63,9.67e-05,2]
[332961922,1721706632532,-499.99,9.67e-05,2]
[332961923,1721706632541,-677.7220109,9.67e-05,2]
[332961924,1721706632552,-317.6979891,9.67e-05,2]
[332961925,1721706632562,-1275.55,9.67e-05,2]
[332961926,1721706632571,-430.69,9.678e-05,2]
[332961927,1721706632580,-425.44,9.678e-05,2]
[332961928,1721706632589,-951.7801476,9.862e-05,2]
[332961929,1721706632601,-2988.0587524,9.862e-05,2]
[332961930,1721706632610,-150.0,9.952e-05,2]
[332961931,1721706632619,-500.0,9.958e-05,2]
[332961932,1721706632629,-500.0,9.958e-05,2]
[332961933,1721706632638,-500.0,9.958e-05,2]
[332961934,1721706632648,-500.0,9.958e-05,2]
[332961935,1721706632658,-500.0,9.958e-05,2]
[332961936,1721706632669,-297.88,9.958e-05,2]
[332961937,1721706632678,-500.0,9.958e-05,2]
[332961938,1721706632687,-223.46834161,9.958e-05,2]
[332961939,1721706632719,-276.53165839,9.958e-05,2]
[332961940,1721706632729,-500.0,9.958e-05,2]
[332961941,1721706632738,-2.10218856,9.958e-05,2]
[332961942,1721706632749,-504.42781144,9.958e-05,2]
[332961943,1721706632759,-155.20964121,9.962e-05,2]
[332961944,1721706632768,-5148.96725935,9.962e-05,2]
[332961945,1721706632795,-677.01,9.962e-05,2]
[332961952,1721706638144,-43924.02274065,9.962e-05,2]
[332961953,1721706638156,-425.44,9.978e-05,2]
[332961954,1721706638167,-257.63733743,0.0001,2]
[332961955,1721706638177,-656.27648889,0.0001,2]
[332961956,1721706638186,-412.41398176,0.0001,2]
[332961957,1721706638196,-425.44,0.00010078,2]
[332961958,1721706638207,-205.6,0.00010078,2]
[332961959,1721706638216,-425.44,0.00010078,2]
[332961960,1721706638225,-1000.0,0.00010136,2]
[332961961,1721706638235,-355.81,0.00010178,2]
[332961962,1721706638244,-425.44,0.00010203,2]
[332961963,1721706638253,-850.88,0.00010203,2]
[332961964,1721706638262,-425.44,0.00010203,2]
[332961965,1721706638271,-425.44,0.00010203,2]
[332961966,1721706638280,-850.88,0.00010203,2]
[332961967,1721706638290,-425.44,0.00010203,2]
[332961968,1721706638301,-425.44,0.00010203,2]
[332961969,1721706638310,-848.32,0.00010203,2]
[332961970,1721706638319,-420.25,0.00010203,2]
[332961971,1721706638330,-425.5,0.00010203,2]
[332961972,1721706638339,-529.84,0.00010203,2]
[332961973,1721706638350,-529.84,0.00010203,2]
[332961974,1721706638359,-529.84,0.00010203,2]
[332961975,1721706638369,-529.84,0.00010203,2]
[332961976,1721706638378,-529.84,0.00010203,2]
[332961977,1721706638389,-529.84,0.00010203,2]
[332961978,1721706638400,-529.84,0.00010203,2]
[332961979,1721706638410,-529.84,0.00010203,2]
[332961980,1721706638420,-529.84,0.00010203,2]
[332961981,1721706638430,-212.68,0.00010203,2]
[332961982,1721706638440,-529.84,0.00010203,2]
[332961983,1721706638453,-169.68,0.00010259,2]
[332961984,1721706638462,-425.44,0.000103,2]
[332961985,1721706638473,-150.0,0.00010352,2]
[332961986,1721706638482,-150.0,0.00010352,2]
[332961987,1721706638494,-1056.04,0.00010378,2]
[332961988,1721706638505,-355.81,0.00010378,2]
[332961989,1721706638517,-425.44,0.00010378,2]
[332961990,1721706638526,-223.74,0.00010422,2]
[332961991,1721706638535,-421.35,0.000105,2]
[332961992,1721706638544,-255.0,0.00010636,2]
[332961993,1721706638554,-150.0,0.00010652,2]
[332961994,1721706638564,-5100.80443964,0.00010748,2]
[332961995,1721706638575,-33849.7193,0.00010758,2]
[332961996,1721706638584,-14126.7349,0.00010758,2]
[332961997,1721706638594,-100000.0,0.00010758,2]
[332961998,1721706638603,-500.0,0.00010758,2]
[332961999,1721706638613,-2912.26893293,0.0001079,2]
[332962000,1721706638623,-241.05044132,0.0001079,2]
[332962001,1721706638633,-155.20877778,0.0001079,2]
[332962002,1721706638642,-435.70460683,0.0001081,2]
[332962003,1721706638652,-579.22914399,0.0001081,2]
[332962004,1721706639019,-5201.0,0.00010849,2]
[332962005,1721706639031,-2060.3683,0.00010858,2]
[332962006,1721706639041,-1000.0,0.00010858,2]
[332962007,1721706639050,-473.66,0.00010858,2]
[332962008,1721706639060,-500.0,0.0001087,2]
[332962009,1721706639069,-301.05777206,0.00010882,2]
[332962010,1721706639079,-9373.039316,0.00010951,2]
[332962011,1721706639089,-81871.0587594,0.00010951,2]
[332962012,1721706639098,-6451.6534606,0.00010951,2]
[332962013,1721706639108,-20697.7632157,0.00010951,2]
[332962014,1721706639121,-300.02,0.00010957,2]
[332962015,1721706639131,-5941.19285388,0.00010957,2]
[332962016,1721706639141,-574.0,0.00010958,2]
[332962017,1721706639151,-500.0,0.00010958,2]
[332962018,1721706639161,-500.0,0.00010958,2]
[332962019,1721706639171,-500.0,0.00010958,2]
[332962020,1721706639181,-2000.0,0.00010958,2]
[332962021,1721706639192,-200.0,0.00010958,2]
[332962022,1721706639206,-500.0,0.00010958,2]
[332962023,1721706639217,-187.51570639,0.00010958,2]
[332962024,1721706639227,-2016.58,0.00010958,2]
[332962025,1721706639236,-2016.58,0.00010958,2]
[332962026,1721706639246,-2016.58,0.00010958,2]
[332962027,1721706639256,-2016.58,0.00010958,2]
[332962028,1721706639266,-2016.58,0.00010958,2]
[332962029,1721706639275,-2016.58,0.00010958,2]
[332962030,1721706639285,-2016.58,0.00010958,2]
[332962031,1721706639296,-2016.58,0.00010958,2]
[332962032,1721706639305,-2016.58,0.00010958,2]
[332962033,1721706639315,-2016.58,0.00010958,2]
[332962034,1721706639326,-2016.58,0.00010958,2]
[332962035,1721706639336,-2016.58,0.00010958,2]
[332962036,1721706639346,-2016.58,0.00010958,2]
[332962037,1721706639357,-2016.58,0.00010958,2]
[332962038,1721706639367,-2016.58,0.00010958,2]
[332962039,1721706639377,-2016.58,0.00010958,2]
[332962040,1721706639387,-2016.58,0.00010958,2]
[332962041,1721706639398,-2016.58,0.00010958,2]
[332962042,1721706639408,-2016.58,0.00010958,2]
[332962043,1721706639418,-2016.58,0.00010958,2]
[332962044,1721706639428,-2016.58,0.00010958,2]
[332962045,1721706639438,-2016.58,0.00010958,2]
[332962046,1721706639447,-2016.58,0.00010958,2]
[332962047,1721706639465,-2016.72027778,0.00010958,2]
[332962048,1721706639475,-500.0,0.00010958,2]
[332962049,1721706639485,-500.0,0.00010958,2]
[332962050,1721706639495,-500.0,0.00010958,2]
[332962051,1721706639507,-500.0,0.00010958,2]
[332962052,1721706639516,-500.0,0.00010958,2]
[332962053,1721706639527,-500.0,0.00010958,2]
[332962054,1721706639536,-500.0,0.00010958,2]
[332962055,1721706639546,-500.0,0.00010958,2]
[332962056,1721706639556,-500.0,0.00010958,2]
[332962057,1721706639566,-500.0,0.00010958,2]
[332962058,1721706639575,-500.0,0.00010958,2]
[332962059,1721706639585,-500.0,0.00010958,2]
[332962060,1721706639596,-500.0,0.00010958,2]
[332962061,1721706639606,-500.0,0.00010958,2]
[332962062,1721706639616,-500.0,0.00010958,2]
[332962063,1721706639625,-500.0,0.00010958,2]
[332962064,1721706639636,-441.68978516,0.00010958,2]
[332962065,1721706639646,-537.95665781,0.00010958,2]
[332962066,1721706639656,-637.36,0.00010958,2]
[332962067,1721706639665,-637.36,0.00010958,2]
[332962068,1721706639675,-637.36,0.00010958,2]
[332962069,1721706639684,-637.36,0.00010958,2]
[332962070,1721706639694,-637.36,0.00010958,2]
[332962071,1721706639707,-637.36,0.00010958,2]
[332962072,1721706639717,-637.36,0.00010958,2]
[332962073,1721706639727,-637.36,0.00010958,2]
[332962074,1721706639736,-637.36,0.00010958,2]
[332962075,1721706639745,-637.36,0.00010958,2]
[332962076,1721706639755,-637.36,0.00010958,2]
[332962077,1721706639764,-637.36,0.00010958,2]
[332962078,1721706639773,-637.36,0.00010958,2]
[332962079,1721706639783,-637.36,0.00010958,2]
[332962080,1721706639792,-637.36,0.00010958,2]
[332962081,1721706639802,-637.36,0.00010958,2]
[332962082,1721706639812,-637.36,0.00010958,2]
[332962083,1721706639821,-637.36,0.00010958,2]
[332962084,1721706639831,-637.36,0.00010958,2]
[332962085,1721706639841,-637.36,0.00010958,2]